[Event "*** SCC Grand Prix: Titled Tuesday Blitz"]
[Site "Chess.com"]
[Date "2020.10.13"]
[Round "9"]
[White "tlomigtlis"]
[Black "Mr_Sinigami"]
[Result "0-1"]
[WhiteElo "2618"]
[BlackElo "2523"]
[TimeControl "180+1"]
[EndTime "11:46:04 PDT"]
[Termination "Mr_Sinigami won by checkmate"]

1. d4 {[%clk 0:03:00.9]} 1... Nf6 {[%clk 0:02:59.6]} 2. c4 {[%clk 0:03:01.3]}
2... g6 {[%clk 0:02:59.4]} 3. Nc3 {[%clk 0:03:01.2]} 3... Bg7 {[%clk 0:02:59.9]}
4. g3 {[%clk 0:02:59.6]} 4... d6 {[%clk 0:02:59.8]} 5. Bg2 {[%clk 0:02:59.7]}
5... O-O {[%clk 0:03:00.4]} 6. Nf3 {[%clk 0:03:00.1]} 6... Nbd7 {[%clk 0:03:01]}
7. O-O {[%clk 0:03:00.4]} 7... e5 {[%clk 0:03:01.6]} 8. e4 {[%clk 0:03:00.2]}
8... exd4 {[%clk 0:03:01.9]} 9. Nxd4 {[%clk 0:03:00.1]} 9... Re8 {[%clk
0:03:02.5]} 10. h3 {[%clk 0:02:58.3]} 10... c6 {[%clk 0:03:02.8]} 11. Be3 {[%clk
0:02:57]} 11... a5 {[%clk 0:03:02.4]} 12. Qc2 {[%clk 0:02:56.7]} 12... Nc5
{[%clk 0:03:01.8]} 13. Rad1 {[%clk 0:02:56.1]} 13... Nfd7 {[%clk 0:03:02.3]} 14.
Rfe1 {[%clk 0:02:53.9]} 14... a4 {[%clk 0:03:01.9]} 15. f4 {[%clk 0:02:51.9]}
15... Qb6 {[%clk 0:02:51]} 16. Bf2 {[%clk 0:02:47.8]} 16... Qa6 {[%clk
0:02:43.4]} 17. Bf1 {[%clk 0:02:44.5]} 17... Nf8 {[%clk 0:02:28.2]} 18. Kh2
{[%clk 0:02:42]} 18... Nfe6 {[%clk 0:02:11]} 19. Nf3 {[%clk 0:02:17.6]} 19...
Qa5 {[%clk 0:01:59.2]} 20. Rxd6 {[%clk 0:02:04.7]} 20... a3 {[%clk 0:01:53.5]}
21. e5 {[%clk 0:02:01]} 21... axb2 {[%clk 0:01:13.5]} 22. Qxb2 {[%clk
0:02:01.9]} 22... f6 {[%clk 0:01:13.6]} 23. exf6 {[%clk 0:01:33.4]} 23... Bxf6
{[%clk 0:01:12.8]} 24. Bd4 {[%clk 0:01:21.2]} 24... Bxd4 {[%clk 0:01:04.5]} 25.
Nxd4 {[%clk 0:01:18.7]} 25... Qc7 {[%clk 0:01:04.4]} 26. Ndb5 {[%clk 0:00:46]}
26... cxb5 {[%clk 0:01:00.4]} 27. Nxb5 {[%clk 0:00:38.4]} 27... Qa5 {[%clk
0:00:56.4]} 28. Re2 {[%clk 0:00:37.3]} 28... Bd7 {[%clk 0:00:56.2]} 29. Nc3
{[%clk 0:00:34.4]} 29... Bc6 {[%clk 0:00:52.5]} 30. Nd5 {[%clk 0:00:31.4]} 30...
Bxd5 {[%clk 0:00:51.1]} 31. cxd5 {[%clk 0:00:32.3]} 31... Ng7 {[%clk 0:00:50.6]}
32. Rxe8+ {[%clk 0:00:33.2]} 32... Nxe8 {[%clk 0:00:45.9]} 33. Rb6 {[%clk
0:00:23.6]} 33... Qxa2 {[%clk 0:00:38.8]} 34. Bg2 {[%clk 0:00:17.7]} 34... Qxb2
{[%clk 0:00:35.8]} 35. Rxb2 {[%clk 0:00:18.6]} 35... Nd6 {[%clk 0:00:36]} 36.
Rb6 {[%clk 0:00:17.9]} 36... Rd8 {[%clk 0:00:35.2]} 37. g4 {[%clk 0:00:16.9]}
37... Kf7 {[%clk 0:00:34.2]} 38. h4 {[%clk 0:00:16]} 38... Ke7 {[%clk
0:00:33.7]} 39. Kh3 {[%clk 0:00:14.7]} 39... Kd7 {[%clk 0:00:33.9]} 40. g5
{[%clk 0:00:13.9]} 40... Kc7 {[%clk 0:00:33.8]} 41. Rb1 {[%clk 0:00:13]} 41...
b5 {[%clk 0:00:31.6]} 42. Kg4 {[%clk 0:00:11.8]} 42... Kb6 {[%clk 0:00:30.7]}
43. h5 {[%clk 0:00:12.1]} 43... Rf8 {[%clk 0:00:28.2]} 44. hxg6 {[%clk 0:00:06]}
44... hxg6 {[%clk 0:00:27.8]} 45. Rb2 {[%clk 0:00:04.6]} 45... Rxf4+ {[%clk
0:00:23.8]} 46. Kg3 {[%clk 0:00:04.7]} 46... Rf5 {[%clk 0:00:21.4]} 47. Kh4
{[%clk 0:00:04.5]} 47... Nd3 {[%clk 0:00:16.7]} 48. Re2 {[%clk 0:00:04.2]} 48...
Nf4 {[%clk 0:00:15.6]} 49. Rf2 {[%clk 0:00:04.4]} 49... Nxg2+ {[%clk 0:00:15.1]}
50. Rxg2 {[%clk 0:00:05.3]} 50... Rxd5 {[%clk 0:00:14.9]} 51. Rf2 {[%clk
0:00:05.7]} 51... Rf5 {[%clk 0:00:14.2]} 52. Re2 {[%clk 0:00:05.4]} 52... Rf4+
{[%clk 0:00:09.6]} 53. Kg3 {[%clk 0:00:05.3]} 53... Re4 {[%clk 0:00:09.6]} 54.
Rd2 {[%clk 0:00:04.9]} 54... Nf5+ {[%clk 0:00:09.3]} 55. Kf3 {[%clk 0:00:05.2]}
55... Rd4 {[%clk 0:00:09.6]} 56. Re2 {[%clk 0:00:04.5]} 56... Rd6 {[%clk
0:00:09.4]} 57. Kf4 {[%clk 0:00:04.7]} 57... b4 {[%clk 0:00:09.1]} 58. Ke5
{[%clk 0:00:05]} 58... Kb5 {[%clk 0:00:08.8]} 59. Rc2 {[%clk 0:00:04.4]} 59...
b3 {[%clk 0:00:08.4]} 60. Rc8 {[%clk 0:00:02.7]} 60... Kb4 {[%clk 0:00:08.4]}
61. Rf8 {[%clk 0:00:02.8]} 61... Rb6 {[%clk 0:00:06.2]} 62. Rf6 {[%clk
0:00:02.1]} 62... Rb5+ {[%clk 0:00:05.2]} 63. Ke6 {[%clk 0:00:02.1]} 63... b2
{[%clk 0:00:05.4]} 64. Rxg6 {[%clk 0:00:02.4]} 64... b1=Q {[%clk 0:00:05.1]} 65.
Kf7 {[%clk 0:00:03.3]} 65... Rb7+ {[%clk 0:00:04.2]} 66. Kf6 {[%clk 0:00:03.7]}
66... Rb6+ {[%clk 0:00:04.4]} 67. Kf7 {[%clk 0:00:04]} 67... Nd6+ {[%clk
0:00:04]} 68. Kg7 {[%clk 0:00:02.9]} 68... Ne8+ {[%clk 0:00:04]} 69. Kf8 {[%clk
0:00:03.4]} 69... Qxg6 {[%clk 0:00:03.3]} 70. Ke7 {[%clk 0:00:04.3]} 70... Qg7+
{[%clk 0:00:03]} 71. Kd8 {[%clk 0:00:05.2]} 71... Rb8# {[%clk 0:00:02.6]} 0-1

[Event "*** SCC Grand Prix: Titled Tuesday Blitz"]
[Site "Chess.com"]
[Date "2020.10.13"]
[Round "9"]
[White "zmeeed67"]
[Black "romulocardoso"]
[Result "1-0"]
[WhiteElo "2357"]
[BlackElo "2103"]
[TimeControl "180+1"]
[EndTime "11:46:13 PDT"]
[Termination "zmeeed67 won by checkmate"]

1. e4 {[%clk 0:03:00.9]} 1... c5 {[%clk 0:02:59.9]} 2. g3 {[%clk 0:03:00.6]}
2... d6 {[%clk 0:03:00.2]} 3. Bg2 {[%clk 0:03:00.6]} 3... Nc6 {[%clk 0:03:00.4]}
4. Ne2 {[%clk 0:03:00.6]} 4... Nf6 {[%clk 0:02:59.8]} 5. O-O {[%clk 0:03:00.4]}
5... g6 {[%clk 0:02:59.5]} 6. Nbc3 {[%clk 0:02:58.4]} 6... Bg7 {[%clk
0:02:59.1]} 7. a3 {[%clk 0:02:58.9]} 7... O-O {[%clk 0:02:58.6]} 8. Rb1 {[%clk
0:02:59.3]} 8... a6 {[%clk 0:02:57.9]} 9. b4 {[%clk 0:02:57.4]} 9... cxb4 {[%clk
0:02:57.7]} 10. axb4 {[%clk 0:02:57.1]} 10... Bd7 {[%clk 0:02:56.4]} 11. b5
{[%clk 0:02:56.2]} 11... axb5 {[%clk 0:02:56.1]} 12. Nxb5 {[%clk 0:02:56.3]}
12... Qa5 {[%clk 0:02:42.1]} 13. d3 {[%clk 0:02:44.8]} 13... Nb4 {[%clk
0:02:38.6]} 14. Nbc3 {[%clk 0:02:36.4]} 14... Na2 {[%clk 0:02:37.9]} 15. Nxa2
{[%clk 0:02:27.1]} 15... Qxa2 {[%clk 0:02:38.8]} 16. Rxb7 {[%clk 0:02:26.8]}
16... Ba4 {[%clk 0:02:37.7]} 17. Rb2 {[%clk 0:02:18.3]} 17... Qe6 {[%clk
0:02:32.2]} 18. Nf4 {[%clk 0:02:12.3]} 18... Qd7 {[%clk 0:02:30.8]} 19. Ra2
{[%clk 0:02:05.6]} 19... Rac8 {[%clk 0:02:29.2]} 20. Qe2 {[%clk 0:01:54.8]}
20... Rc7 {[%clk 0:02:10.6]} 21. c4 {[%clk 0:01:54.3]} 21... Rb8 {[%clk
0:02:05.4]} 22. h3 {[%clk 0:01:49.1]} 22... Ra7 {[%clk 0:01:54.7]} 23. Be3
{[%clk 0:01:40]} 23... Ne8 {[%clk 0:01:45.8]} 24. Bxa7 {[%clk 0:01:36.7]} 24...
Qxa7 {[%clk 0:01:42.7]} 25. Nd5 {[%clk 0:01:31.4]} 25... Rb7 {[%clk 0:01:23.4]}
26. Kh2 {[%clk 0:01:01.9]} 26... Nf6 {[%clk 0:01:17.2]} 27. Nc3 {[%clk 0:00:52]}
27... Ng4+ {[%clk 0:01:11]} 28. Qxg4 {[%clk 0:00:51.3]} 28... Bxc3 {[%clk
0:01:11.9]} 29. Qc8+ {[%clk 0:00:49.6]} 29... Kg7 {[%clk 0:01:11.7]} 30. Rxa4
{[%clk 0:00:46.9]} 30... Qxa4 {[%clk 0:00:48.9]} 31. Qxb7 {[%clk 0:00:46.3]}
31... Qc2 {[%clk 0:00:48.9]} 32. Qd5 {[%clk 0:00:41.6]} 32... Be5 {[%clk
0:00:46.2]} 33. Kg1 {[%clk 0:00:40.5]} 33... e6 {[%clk 0:00:45]} 34. Qc6 {[%clk
0:00:34.2]} 34... Qxd3 {[%clk 0:00:44.6]} 35. f4 {[%clk 0:00:25.4]} 35... Qd4+
{[%clk 0:00:21]} 36. Kh2 {[%clk 0:00:26.3]} 36... Bf6 {[%clk 0:00:20.1]} 37. f5
{[%clk 0:00:21.5]} 37... Be5 {[%clk 0:00:19.7]} 38. f6+ {[%clk 0:00:15.2]} 38...
Bxf6 {[%clk 0:00:19.3]} 39. Rxf6 {[%clk 0:00:15.1]} 39... Kxf6 {[%clk
0:00:18.2]} 40. e5+ {[%clk 0:00:11.7]} 40... Qxe5 {[%clk 0:00:17.9]} 41. Qf3+
{[%clk 0:00:11.5]} 41... Kg7 {[%clk 0:00:17.7]} 42. h4 {[%clk 0:00:11.8]} 42...
h5 {[%clk 0:00:17.9]} 43. Qd3 {[%clk 0:00:11.1]} 43... f5 {[%clk 0:00:17.7]} 44.
Bf3 {[%clk 0:00:10.4]} 44... Kh6 {[%clk 0:00:17.5]} 45. Kg2 {[%clk 0:00:10.4]}
45... g5 {[%clk 0:00:16.8]} 46. Kf2 {[%clk 0:00:08.4]} 46... gxh4 {[%clk
0:00:16.5]} 47. gxh4 {[%clk 0:00:07.6]} 47... Qh2+ {[%clk 0:00:16.5]} 48. Ke3
{[%clk 0:00:05.3]} 48... Qe5+ {[%clk 0:00:12.4]} 49. Kd2 {[%clk 0:00:05]} 49...
Qh2+ {[%clk 0:00:12.3]} 50. Kc3 {[%clk 0:00:04.2]} 50... Qxh4 {[%clk 0:00:12.6]}
51. Qxd6 {[%clk 0:00:03.5]} 51... Qf6+ {[%clk 0:00:12.5]} 52. Qd4 {[%clk
0:00:03.1]} 52... e5 {[%clk 0:00:11.7]} 53. Qd2+ {[%clk 0:00:03.5]} 53... Kg6
{[%clk 0:00:11.4]} 54. Bd5 {[%clk 0:00:04]} 54... e4+ {[%clk 0:00:11.3]} 55. Qd4
{[%clk 0:00:04.5]} 55... Qg5 {[%clk 0:00:10.7]} 56. c5 {[%clk 0:00:04]} 56...
Qc1+ {[%clk 0:00:08.9]} 57. Kb4 {[%clk 0:00:03.4]} 57... Qb1+ {[%clk 0:00:08.3]}
58. Bb3 {[%clk 0:00:03.8]} 58... Qe1+ {[%clk 0:00:08.3]} 59. Qc3 {[%clk
0:00:04.2]} 59... Qf2 {[%clk 0:00:07.1]} 60. c6 {[%clk 0:00:03.7]} 60... Qb6+
{[%clk 0:00:07.5]} 61. Ka3 {[%clk 0:00:04.1]} 61... Qa6+ {[%clk 0:00:07.6]} 62.
Ba4 {[%clk 0:00:04.2]} 62... Qc8 {[%clk 0:00:06.6]} 63. c7 {[%clk 0:00:04.3]}
63... e3 {[%clk 0:00:06.7]} 64. Bd7 {[%clk 0:00:04.4]} 64... Qa6+ {[%clk
0:00:05.9]} 65. Kb2 {[%clk 0:00:04.3]} 65... Qb7+ {[%clk 0:00:04.6]} 66. Kc2
{[%clk 0:00:04.2]} 66... e2 {[%clk 0:00:04.4]} 67. c8=Q {[%clk 0:00:03.3]} 67...
Qe4+ {[%clk 0:00:05]} 68. Kb3 {[%clk 0:00:02]} 68... e1=Q {[%clk 0:00:04.6]} 69.
Qg8+ {[%clk 0:00:01.4]} 69... Kh6 {[%clk 0:00:04.3]} 70. Qcg7# {[%clk 0:00:01]}
1-0

[Event "*** SCC Grand Prix: Titled Tuesday Blitz"]
[Site "Chess.com"]
[Date "2020.10.13"]
[Round "9"]
[White "annazero"]
[Black "AliKa2810"]
[Result "1-0"]
[WhiteElo "2396"]
[BlackElo "2594"]
[TimeControl "180+1"]
[EndTime "11:46:19 PDT"]
[Termination "annazero won by resignation"]

1. d4 {[%clk 0:03:00.9]} 1... Nf6 {[%clk 0:02:59.6]} 2. Nf3 {[%clk 0:02:59.7]}
2... g6 {[%clk 0:02:59.3]} 3. g3 {[%clk 0:02:58.5]} 3... Bg7 {[%clk 0:02:59.5]}
4. Bg2 {[%clk 0:02:59.4]} 4... O-O {[%clk 0:02:57.8]} 5. O-O {[%clk 0:03:00.3]}
5... d5 {[%clk 0:02:57.8]} 6. c4 {[%clk 0:03:00.5]} 6... dxc4 {[%clk 0:02:57.8]}
7. Na3 {[%clk 0:02:59.9]} 7... c3 {[%clk 0:02:58.4]} 8. bxc3 {[%clk 0:03:00.8]}
8... c5 {[%clk 0:02:58.8]} 9. Qb3 {[%clk 0:02:59.8]} 9... Nc6 {[%clk 0:02:58.5]}
10. Rd1 {[%clk 0:02:56.2]} 10... Qc7 {[%clk 0:02:43.3]} 11. Bf4 {[%clk
0:02:53.7]} 11... Qa5 {[%clk 0:02:34.3]} 12. Ne5 {[%clk 0:02:40.7]} 12... Nxe5
{[%clk 0:02:15.6]} 13. Bxe5 {[%clk 0:02:40.2]} 13... Be6 {[%clk 0:02:14.9]} 14.
d5 {[%clk 0:02:17.6]} 14... Bg4 {[%clk 0:01:02.6]} 15. f3 {[%clk 0:02:17.1]}
15... Bd7 {[%clk 0:00:56.8]} 16. c4 {[%clk 0:02:04.6]} 16... Ba4 {[%clk
0:00:56]} 17. Qb2 {[%clk 0:01:57.7]} 17... Bxd1 {[%clk 0:00:55.8]} 18. Rxd1
{[%clk 0:01:58.6]} 18... Rfd8 {[%clk 0:00:49.9]} 19. Nb5 {[%clk 0:01:55.9]}
19... Rac8 {[%clk 0:00:49.4]} 20. Bh3 {[%clk 0:01:49.8]} 20... e6 {[%clk
0:00:36.8]} 21. Bxf6 {[%clk 0:01:46.3]} 21... Bxf6 {[%clk 0:00:33.7]} 22. Qxf6
{[%clk 0:01:46.1]} 22... Rc6 {[%clk 0:00:21.8]} 23. Kf2 {[%clk 0:01:31.7]} 23...
exd5 {[%clk 0:00:21.1]} 24. Qc3 {[%clk 0:01:23.6]} 24... Qxc3 {[%clk 0:00:14.9]}
25. Nxc3 {[%clk 0:01:24.5]} 25... d4 {[%clk 0:00:15.5]} 26. Nd5 {[%clk
0:01:24.7]} 26... Kf8 {[%clk 0:00:15.3]} 27. Rb1 {[%clk 0:01:23.8]} 27... b6
{[%clk 0:00:15.1]} 28. f4 {[%clk 0:01:21.5]} 28... Rb8 {[%clk 0:00:15.1]} 29.
Bg2 {[%clk 0:01:20.8]} 29... Rd6 {[%clk 0:00:15.3]} 30. Ke1 {[%clk 0:01:18]}
30... f5 {[%clk 0:00:15.3]} 31. Kd2 {[%clk 0:01:17.9]} 31... Kf7 {[%clk
0:00:15.7]} 32. e3 {[%clk 0:01:17.9]} 32... dxe3+ {[%clk 0:00:15]} 33. Kxe3
{[%clk 0:01:18.8]} 33... Re8+ {[%clk 0:00:14.4]} 34. Kf2 {[%clk 0:01:18.9]}
34... Ree6 {[%clk 0:00:12.5]} 35. Bf3 {[%clk 0:01:18.6]} 35... Re8 {[%clk
0:00:11.9]} 36. Rb2 {[%clk 0:01:16.2]} 36... Red8 {[%clk 0:00:11.9]} 37. Re2
{[%clk 0:01:15]} 37... Re8 {[%clk 0:00:12.3]} 38. Rd2 {[%clk 0:01:14.7]} 38...
Red8 {[%clk 0:00:12.3]} 39. Rb2 {[%clk 0:01:14.8]} 39... Re8 {[%clk 0:00:12.4]}
40. a4 {[%clk 0:01:14.8]} 40... Red8 {[%clk 0:00:12.5]} 41. a5 {[%clk
0:01:14.7]} 41... bxa5 {[%clk 0:00:12.5]} 42. Rb5 {[%clk 0:01:13.4]} 42... a4
{[%clk 0:00:11.2]} 43. Ra5 {[%clk 0:01:13.2]} 43... Rb8 {[%clk 0:00:11]} 44.
Rxa7+ {[%clk 0:01:11.1]} 44... Kg8 {[%clk 0:00:11.1]} 45. Rxa4 {[%clk
0:01:08.4]} 45... Rb2+ {[%clk 0:00:11.3]} 46. Kf1 {[%clk 0:00:55.5]} 46... Re6
{[%clk 0:00:10.6]} 47. Nc3 {[%clk 0:00:49.9]} 47... Re3 {[%clk 0:00:10.2]} 48.
Bd5+ {[%clk 0:00:48.8]} 48... Kf8 {[%clk 0:00:09.8]} 49. Ra8+ {[%clk 0:00:47.2]}
49... Ke7 {[%clk 0:00:09.8]} 50. Ra7+ {[%clk 0:00:47]} 50... Kd8 {[%clk
0:00:10]} 51. Nd1 {[%clk 0:00:34.7]} 51... Rb1 {[%clk 0:00:09.8]} 52. Kf2 {[%clk
0:00:34.7]} 52... Rd3 {[%clk 0:00:09.8]} 53. Ra8+ {[%clk 0:00:30.5]} 53... Kc7
{[%clk 0:00:09.4]} 54. Ra7+ {[%clk 0:00:29.7]} 54... Kb8 {[%clk 0:00:09.6]} 55.
Ra8+ {[%clk 0:00:28.9]} 55... Kc7 {[%clk 0:00:10.5]} 56. Bf3 {[%clk 0:00:23.2]}
56... Rdxd1 {[%clk 0:00:08.6]} 57. Bxd1 {[%clk 0:00:21.7]} 57... Rxd1 {[%clk
0:00:09.5]} 58. Ra7+ {[%clk 0:00:22]} 58... Kd6 {[%clk 0:00:09.7]} 59. Rxh7
{[%clk 0:00:20]} 59... Rd4 {[%clk 0:00:09.6]} 60. Rh6 {[%clk 0:00:19.6]} 60...
Rxc4 {[%clk 0:00:10.3]} 61. Rxg6+ {[%clk 0:00:20]} 61... Kd5 {[%clk 0:00:11]}
62. Rf6 {[%clk 0:00:19.3]} 62... Rc2+ {[%clk 0:00:09.6]} 63. Ke3 {[%clk
0:00:17.2]} 63... Rxh2 {[%clk 0:00:09.6]} 64. Rxf5+ {[%clk 0:00:17.4]} 64... Kd6
{[%clk 0:00:09.4]} 65. Rf6+ {[%clk 0:00:17.3]} 65... Kd5 {[%clk 0:00:09.9]} 66.
Rf8 {[%clk 0:00:17.3]} 66... c4 {[%clk 0:00:09.9]} 67. Rc8 {[%clk 0:00:16.6]}
67... Rg2 {[%clk 0:00:08.5]} 68. Kf3 {[%clk 0:00:16.2]} 68... Rg1 {[%clk
0:00:08.8]} 69. Kg4 {[%clk 0:00:15.7]} 69... Kd4 {[%clk 0:00:09]} 70. Kh4 {[%clk
0:00:15.3]} 70... c3 {[%clk 0:00:09.3]} 71. g4 {[%clk 0:00:14.7]} 71... Ke3
{[%clk 0:00:07.9]} 72. f5 {[%clk 0:00:14.9]} 72... Kf4 {[%clk 0:00:07.3]} 73.
Rc4+ {[%clk 0:00:14.9]} 73... Ke5 {[%clk 0:00:07.3]} 74. Rxc3 {[%clk 0:00:14.9]}
74... Kf6 {[%clk 0:00:07.6]} 75. Rc6+ {[%clk 0:00:14.1]} 75... Kg7 {[%clk
0:00:07.9]} 76. Kg5 {[%clk 0:00:15]} 76... Kf7 {[%clk 0:00:07.5]} 77. Rc7+
{[%clk 0:00:15.9]} 77... Kf8 {[%clk 0:00:07.5]} 78. Kf6 {[%clk 0:00:15.7]} 78...
Kg8 {[%clk 0:00:06.5]} 79. g5 {[%clk 0:00:14.2]} 79... Ra1 {[%clk 0:00:06.1]}
80. Rc8+ {[%clk 0:00:14.3]} 1-0

[Event "*** SCC Grand Prix: Titled Tuesday Blitz"]
[Site "Chess.com"]
[Date "2020.10.13"]
[Round "9"]
[White "Anton_Demchenko"]
[Black "Sanan_Sjugirov"]
[Result "0-1"]
[WhiteElo "2822"]
[BlackElo "2906"]
[TimeControl "180+1"]
[EndTime "11:46:29 PDT"]
[Termination "Sanan_Sjugirov won by resignation"]

1. d4 {[%clk 0:02:59.3]} 1... Nf6 {[%clk 0:03:00.2]} 2. Nf3 {[%clk 0:02:59]}
2... e6 {[%clk 0:02:56.1]} 3. Bf4 {[%clk 0:02:58.9]} 3... c5 {[%clk 0:02:56.3]}
4. e3 {[%clk 0:02:58.4]} 4... cxd4 {[%clk 0:02:56.9]} 5. exd4 {[%clk 0:02:58.4]}
5... b6 {[%clk 0:02:57.5]} 6. a4 {[%clk 0:02:52.9]} 6... a6 {[%clk 0:02:55.1]}
7. Nbd2 {[%clk 0:02:52.4]} 7... Bb7 {[%clk 0:02:54.7]} 8. Bd3 {[%clk 0:02:52.4]}
8... Be7 {[%clk 0:02:53.5]} 9. O-O {[%clk 0:02:52.8]} 9... O-O {[%clk
0:02:50.8]} 10. h3 {[%clk 0:02:53.2]} 10... d6 {[%clk 0:02:50.5]} 11. Re1 {[%clk
0:02:50.1]} 11... Nbd7 {[%clk 0:02:49.1]} 12. Bh2 {[%clk 0:02:47.8]} 12... Qc7
{[%clk 0:02:42.8]} 13. Qe2 {[%clk 0:02:41.7]} 13... h6 {[%clk 0:02:39.5]} 14. c4
{[%clk 0:02:27.7]} 14... a5 {[%clk 0:02:34.1]} 15. Nb1 {[%clk 0:02:25.2]} 15...
Rfe8 {[%clk 0:02:26.9]} 16. Nc3 {[%clk 0:02:25.1]} 16... Qd8 {[%clk 0:02:25.9]}
17. Nb5 {[%clk 0:02:22.3]} 17... Nb8 {[%clk 0:02:21.3]} 18. Rad1 {[%clk
0:02:11.7]} 18... Na6 {[%clk 0:02:19.8]} 19. Bb1 {[%clk 0:02:05.4]} 19... Nb4
{[%clk 0:02:18.3]} 20. c5 {[%clk 0:01:59]} 20... Ba6 {[%clk 0:01:30.5]} 21. b3
{[%clk 0:00:53.1]} 21... Nbd5 {[%clk 0:01:14.1]} 22. cxd6 {[%clk 0:00:40.8]}
22... Bxd6 {[%clk 0:01:13.5]} 23. Bxd6 {[%clk 0:00:31.8]} 23... Bxb5 {[%clk
0:01:13.6]} 24. Qxb5 {[%clk 0:00:20.2]} 24... Qxd6 {[%clk 0:01:12.8]} 25. Rc1
{[%clk 0:00:20.8]} 25... Rec8 {[%clk 0:01:11.1]} 26. Ne5 {[%clk 0:00:17.9]}
26... Qa3 {[%clk 0:01:07.5]} 27. Nc4 {[%clk 0:00:14.5]} 27... Qe7 {[%clk
0:01:00.1]} 28. Ne5 {[%clk 0:00:14.2]} 28... Rxc1 {[%clk 0:00:36.3]} 29. Rxc1
{[%clk 0:00:13.9]} 29... Qa3 {[%clk 0:00:36.9]} 30. Qc4 {[%clk 0:00:10.7]} 30...
Rf8 {[%clk 0:00:33.3]} 31. Re1 {[%clk 0:00:10.6]} 31... Qb4 {[%clk 0:00:21.8]}
32. Qxb4 {[%clk 0:00:09.9]} 32... Nxb4 {[%clk 0:00:22.7]} 33. Rc1 {[%clk
0:00:09.9]} 33... Rd8 {[%clk 0:00:22.5]} 34. Nc6 {[%clk 0:00:08.4]} 34... Nxc6
{[%clk 0:00:20.1]} 35. Rxc6 {[%clk 0:00:09.3]} 35... g6 {[%clk 0:00:16.1]} 36.
Rxb6 {[%clk 0:00:08.7]} 36... Rxd4 {[%clk 0:00:16.3]} 37. Kh2 {[%clk 0:00:08.5]}
37... Rd1 {[%clk 0:00:13.5]} 38. Bc2 {[%clk 0:00:08.8]} 38... Rd2 {[%clk
0:00:14.1]} 39. Bb1 {[%clk 0:00:08.8]} 39... Rxf2 {[%clk 0:00:13.2]} 40. b4
{[%clk 0:00:06.7]} 40... axb4 {[%clk 0:00:11.1]} 41. a5 {[%clk 0:00:06.8]} 41...
Rb2 {[%clk 0:00:09.3]} 42. Bd3 {[%clk 0:00:05.1]} 42... Ra2 {[%clk 0:00:06]} 43.
a6 {[%clk 0:00:05.2]} 43... Nd5 {[%clk 0:00:06.4]} 44. Rb7 {[%clk 0:00:05.2]}
44... Nf4 {[%clk 0:00:04.7]} 45. Bc4 {[%clk 0:00:05.4]} 45... Ra5 {[%clk
0:00:03.2]} 46. Rxb4 {[%clk 0:00:04.6]} 46... Kg7 {[%clk 0:00:03.1]} 47. Rb2
{[%clk 0:00:04.8]} 47... Nd5 {[%clk 0:00:03.2]} 48. Ra2 {[%clk 0:00:04.9]} 48...
Rxa2 {[%clk 0:00:03]} 49. Bxa2 {[%clk 0:00:05.8]} 49... Nc7 {[%clk 0:00:02.9]}
50. a7 {[%clk 0:00:05.1]} 50... Kf6 {[%clk 0:00:03.8]} 51. Kg3 {[%clk
0:00:05.7]} 51... Ke5 {[%clk 0:00:04.2]} 52. Kf3 {[%clk 0:00:05.2]} 52... Kd4
{[%clk 0:00:04.4]} 53. h4 {[%clk 0:00:04.8]} 53... Kc5 {[%clk 0:00:04.3]} 54. g4
{[%clk 0:00:04.9]} 54... Kb6 {[%clk 0:00:04.5]} 55. Kf4 {[%clk 0:00:05.6]} 55...
f6 {[%clk 0:00:04.3]} 56. Bb1 {[%clk 0:00:04.4]} 56... g5+ {[%clk 0:00:04.4]}
57. hxg5 {[%clk 0:00:05.3]} 57... hxg5+ {[%clk 0:00:05.3]} 58. Ke4 {[%clk
0:00:05.3]} 58... Kxa7 {[%clk 0:00:05.9]} 59. Kd4 {[%clk 0:00:05.4]} 59... Kb6
{[%clk 0:00:06.8]} 60. Be4 {[%clk 0:00:05.1]} 60... Kb5 {[%clk 0:00:07]} 61. Bb7
{[%clk 0:00:05.2]} 61... Kb4 {[%clk 0:00:07.2]} 62. Be4 {[%clk 0:00:05.3]} 62...
Nb5+ {[%clk 0:00:07.4]} 63. Ke3 {[%clk 0:00:03.1]} 63... Kc5 {[%clk 0:00:08.3]}
64. Bg6 {[%clk 0:00:03.1]} 64... Kd6 {[%clk 0:00:05.7]} 65. Bh7 {[%clk 0:00:04]}
65... Nc7 {[%clk 0:00:06.1]} 66. Kf3 {[%clk 0:00:04.9]} 66... Ke5 {[%clk
0:00:06.9]} 67. Kg3 {[%clk 0:00:05.8]} 67... Nd5 {[%clk 0:00:07.8]} 68. Bg8
{[%clk 0:00:06.4]} 68... Nc3 {[%clk 0:00:08.7]} 69. Bh7 {[%clk 0:00:06.7]} 69...
Nb5 {[%clk 0:00:09.2]} 70. Kf3 {[%clk 0:00:07.6]} 70... Nd4+ {[%clk 0:00:10.1]}
71. Kg3 {[%clk 0:00:08.5]} 71... Kd5 {[%clk 0:00:10.2]} 72. Bb1 {[%clk
0:00:09.4]} 72... e5 {[%clk 0:00:10.9]} 73. Ba2+ {[%clk 0:00:10.3]} 73... Ke4
{[%clk 0:00:11]} 74. Kf2 {[%clk 0:00:11]} 74... Kf4 {[%clk 0:00:11.1]} 75. Bd5
{[%clk 0:00:10.7]} 75... Kxg4 {[%clk 0:00:11.8]} 76. Bb7 {[%clk 0:00:11.5]}
76... Kf4 {[%clk 0:00:12.7]} 77. Bc8 {[%clk 0:00:12.4]} 77... e4 {[%clk
0:00:13.1]} 78. Bd7 {[%clk 0:00:13.3]} 78... e3+ {[%clk 0:00:14]} 79. Ke1 {[%clk
0:00:14]} 79... Ke4 {[%clk 0:00:14.3]} 80. Kf1 {[%clk 0:00:14.9]} 80... Kd3
{[%clk 0:00:15.2]} 81. Ke1 {[%clk 0:00:15.7]} 81... Nf3+ {[%clk 0:00:15.4]} 82.
Kf1 {[%clk 0:00:16.6]} 82... e2+ {[%clk 0:00:16.3]} 83. Kf2 {[%clk 0:00:17.2]}
83... e1=Q+ {[%clk 0:00:16.8]} 84. Kxf3 {[%clk 0:00:18.1]} 84... Qe3+ {[%clk
0:00:17]} 85. Kg4 {[%clk 0:00:18.6]} 85... Qf4+ {[%clk 0:00:16.9]} 0-1